Cogmind - Beta 17 @@@ ROGUE MODE // 2026.08.18 @ 19:24:30 Player: Kel Result: Destroyed by G-47 Trooper with Particle Gun Performance ------------- Evolutions (2) 1000 Regions Visited (4) 800 Robots Destroyed (27) 135 Value Destroyed (857) 857 Prototype IDs (2) 40 Alien Tech Used (0) 0 Bonus (351) 351 TOTAL SCORE: 3183 Bonus ------- Follower Combat Kills 351 Cogmind --------- Core Integrity 0/550 Matter 300/300 Energy 78/100 System Corruption 2% Temperature Cool (51) Movement Core (50) Location -8/Materials Parts ------- > --- POWER (1) -------- (None) > --- PROPULSION (3) --- (None) > --- UTILITY (5) ------ (None) > --- WEAPON (2) ------- (None) > --- INVENTORY (5) ---- Compact Battery (200) Drone Bay (2/2) Peak State ------------ > --- POWER ------------ Improved Ion Engine > --- PROPULSION ------- Improved Aluminum Leg Improved Aluminum Leg Carbon-fiber Leg > --- UTILITY ---------- Heat Sink Medium Storage Unit Drone Bay Drone Bay Drone Bay > --- WEAPON ----------- Improved EM Shotgun Advanced Beam Cannon > --- INVENTORY -------- Improved Ion Engine Improved Ion Engine Improved Aluminum Leg Advanced Weight Redist. System Drone Bay Drone Bay Drone Bay Drone Bay Improved EM Shotgun Advanced Beam Cannon [Rating: 35] Favorites ----------- Power Improved Ion Engine Engine Improved Ion Engine Propulsion Improved Aluminum Leg Leg Improved Aluminum Leg Utility Drone Bay Device Drone Bay Storage Medium Storage Unit Processor Signal Interpreter Protection Utility Shielding Weapon Improved EM Shotgun Energy Gun Improved EM Shotgun Energy Cannon Advanced Beam Cannon Ballistic Gun Assault Rifle Ballistic Cannon Light Cannon Build | -11 -10 -9 -9 -8 ------- Run | Yrd Mat Mat Sto Mat Slots Evolved 4 | . . 2 . 2 Power . | . . . . . Propulsion 1 | . . . . 1 Utility 3 | . . 2 . 1 Weapon . | . . . . . Parts Attached 40 | 6 10 2 14 8 Power 6 | 1 2 . 1 2 Engine 6 | 1 2 . 1 2 Core . | . . . . . Reactor . | . . . . . Propulsion 12 | 2 3 . 4 3 Treads . | . . . . . Leg 12 | 2 3 . 4 3 Wheel . | . . . . . Hover . | . . . . . Flight . | . . . . . Utility 10 | 1 2 2 4 1 Device 5 | . . 1 3 1 Storage 3 | 1 1 . 1 . Processor 1 | . . 1 . . Hackware . | . . . . . Protection 1 | . 1 . . . Artifact . | . . . . . Weapon 12 | 2 3 . 5 2 Energy Gun 5 | . . . 4 1 Energy Cannon 2 | . . . 1 1 Ballistic Gun 4 | 2 2 . . . Ballistic Cannon 1 | . 1 . . . Launcher . | . . . . . Special Weapon . | . . . . . Impact Weapon . | . . . . . Slashing Weapon . | . . . . . Piercing Weapon . | . . . . . Special Melee Weapon . | . . . . . Unidentified Prototypes 2 | . . . 2 . Parts Lost 14 | . 4 4 1 5 Power 3 | . 1 1 . 1 Propulsion 3 | . 1 1 . 1 Utility 1 | . . . . 1 Weapon 7 | . 2 2 1 2 Highest Loss Streak 4 | . 4 4 1 3 To Critical Strikes . | . . . . . Average Backups 8 | 3 7 5 8 8 Power . | . . 1 . 1 Propulsion 1 | 2 3 1 1 . Utility 3 | . 1 . 4 4 Weapon 2 | . 1 2 2 1 Tool/Special . | . . . . . Unused Backups 15 | . 4 1 4 6 Power 1 | . . . 1 . Propulsion 4 | . 3 . 1 . Utility 8 | . 1 . 1 6 Weapon 1 | . . 1 . . Tool/Special 1 | . . . 1 . Average Slot Usage (%) 91 | . 96 88 90 89 Engine 10 | . 13 9 9 7 Leg 22 | . 27 20 20 24 Device 20 | . . 4 27 31 Storage 11 | . 14 11 10 8 Protection 3 | . 12 11 . . Energy Gun 9 | . . . 15 8 Energy Cannon 4 | . . . 5 8 Ballistic Gun 6 | . 27 9 . . Peak Build Rating 35 | 6 8 11 31 35 Average Rating 20 | 4 7 8 25 31 On Entrance 8 | . 6 7 . 31 Avg Prop Armor Cover (%) 3 | . . . . 3 Naked Turns 46 | . . 8 11 27 Heaviest Build 43 | 14 24 21 42 43 Greatest Support 26 | 20 20 20 26 26 Greatest Overweight (x) 4 | . 1 1 4 2 Average Overweight (x) . | . . . . . Largest Inventory Capacity 10 | 8 10 10 10 10 Average Capacity 9 | 6 9 9 9 9 Most Carried 10 | 6 10 7 10 10 Average Carried 8 | 3 7 5 8 8 Final Capacity 10 | 8 10 5 10 5 Final Carried 10 | 6 4 5 10 2 Class Distribution -------------------- 51% | Mutant 48% | Commander-Mutant Dominant Class ---------------- Mutant | -10/Materials Mutant | -9/Materials Commander-Mutant | -9/Storage Mutant | -8/Materials Resources | -11 -10 -9 -9 -8 ----------- Run | Yrd Mat Mat Sto Mat Matter Collected 854 | 193 259 186 150 66 Remotely . | . . . . . Salvage Created 918 | . 283 272 200 163 Parts 51 | . 20 14 12 5 Haulers Intercepted . | . . . . . Recyclers Shooed 1 | . . . . 1 Parts Field Recycled . | . . . . . Retrieved Matter . | . . . . . Parts Self-Destructed . | . . . . . Prevented . | . . . . . Parts Restored . | . . . . . Kills | -11 -10 -9 -9 -8 ------- Run | Yrd Mat Mat Sto Mat Combat Hostiles Destroyed 23 | . 9 6 5 3 Guns 17 | . 9 1 5 2 Cannons 4 | . . 4 . . AOE 1 | . . 1 . . Classes Destroyed 8 | . 2 4 1 1 Worker 1 | . . 1 . . Tunneler 1 | . . 1 . . Recycler 1 | . . 1 . . Watcher 1 | . . . 1 . Swarmer 4 | . 3 . 1 . Grunt 14 | . 6 5 2 1 Brawler 1 | . . . . 1 Sentry 4 | . . 1 2 1 Best Kill Streak 6 | . 3 6 2 1 Combat Bots Only 3 | . 3 3 2 1 Max Kills in Single Turn 4 | . 1 4 1 1 Gunslinging . | . . . . . Exploded 1 | . . 1 . . Melee . | . . . . . Uniques/NPCs Destroyed . | . . . . . Combat | -11 -10 -9 -9 -8 -------- Run | Yrd Mat Mat Sto Mat Hostile Shots Fired 250 | . 50 47 46 107 Missed 61 | . 6 15 12 28 Hits 189 | . 44 32 34 79 Melee 2 | . . . . 2 Projectile 187 | . 44 32 34 77 Critical Strikes 11 | . 1 2 2 6 Damage Taken 2865 | . 578 506 482 1299 Core 842 | . 70 87 125 560 Absorbed by Shields . | . . . . . Redirected to Shielding 17 | . 2 15 . . Core Remaining (%) 73 | 100 72 . 47 . Volleys Fired 95 | . 30 25 24 16 Largest 2 | . 2 2 2 2 Hottest 130 | . 40 50 130 113 Shots Fired 163 | . 60 41 34 28 Gun 122 | . 60 16 30 16 Cannon 41 | . . 25 4 12 Launcher . | . . . . . Special . | . . . . . Kinetic 101 | . 60 41 . . Thermal 37 | . . . 25 12 Explosive . | . . . . . Electromagnetic 25 | . . . 9 16 Robot Hit Streak 16 | . 10 11 16 7 Robot Miss Streak 3 | . 3 3 2 2 Penetration Max . | . . . . . Secondary Targets 3 | . 3 . . . Max Gunslinging Chain 1 | . 1 . . . Shots Hit Robots 124 | . 44 31 26 23 Core Hits 63 | . 16 14 25 8 Critical Kills 1 | . . . . 1 Critical Parts Destroyed . | . . . . . Critical Strikes 3 | . . 2 . 1 Meltdown 1 | . . . . 1 Blast 2 | . . 2 . . Melee Attacks . | . . . . . Impact . | . . . . . Slashing . | . . . . . Piercing . | . . . . . Sneak Attacks . | . . . . . Combat Hostiles . | . . . . . Follow-up Attacks . | . . . . . Damage Inflicted 2203 | . 502 820 463 418 Guns 1251 | . 502 94 393 262 Cannons 532 | . . 349 41 142 Explosions 377 | . . 377 . . Melee . | . . . . . Ramming 43 | . . . 29 14 Kinetic 945 | . 502 443 . . Thermal 523 | . . . 381 142 Explosive 377 | . . 377 . . Electromagnetic 315 | . . . 53 262 Impact . | . . . . . Slashing . | . . . . . Piercing . | . . . . . Highest Corruption 2 | . . . . 2 Average Corruption 2 | . . . . 2 Corruption Purged . | . . . . . Corruption Blocked . | . . . . . Effects 2 | . . . . 2 Message Errors 1 | . . . . 1 Matter Fused 1 | . . . . 1 Overload Shots . | . . . . . Overflow Damage 21 | . . 20 1 . Projectiles 1 | . . . 1 . Explosions 20 | . . 20 . . Melee . | . . . . . Knockbacks 3 | . . 2 1 . Impact 1 | . . . 1 . Kinetic 2 | . . 2 . . Secondary . | . . . . . Self-Inflicted Damage 73 | . . 72 . 1 Shots 1 | . . 1 . . Rammed 1 | . . . . 1 Targets Rammed 10 | . . . 6 4 Kicked 9 | . . . 6 3 Crushed . | . . . . . Highest Temperature 405 | . 22 15 405 69 Average Temperature 61 | . 5 7 112 21 Received Heat Transfer 1428 | . 294 225 228 681 Effects 2 | . . . 2 . Energy Bleed 1 | . . . 1 . Damage (minor) 1 | . . . 1 . Siege Activations . | . . . . . Martial Activations . | . . . . . Shielding Activations . | . . . . . Robots Disrupted . | . . . . . Combat Hostiles . | . . . . . Robots Corrupted . | . . . . . Combat Hostiles . | . . . . . Parts Fried . | . . . . . Impact Corruptions . | . . . . . Robots Melted 1 | . . . . 1 Combat Hostiles 1 | . . . . 1 Parts Melted 5 | . . . 3 2 Heat Transferred 921 | . . . 662 259 Parts Sabotaged . | . . . . . Parts Stolen . | . . . . . Parts Stripped . | . . . . . Power Chain Reactions . | . . . . . Alert | -11 -10 -9 -9 -8 ------- Run | Yrd Mat Mat Sto Mat Maximum Alert Level 1 | . . . 1 . Low Security (%) 97 | 100 100 100 96 100 Level 1 2 | . . . 3 . Level 2 . | . . . . . Level 3 . | . . . . . Level 4 . | . . . . . Level 5 . | . . . . . High Security . | . . . . . Max Security . | . . . . . Peak Influence 216 | . 120 166 216 94 Initial 57 | . . 15 57 45 Average 73 | . 41 81 103 21 Influence Increases 1448 | . 250 246 643 309 Destroy 0b10 Robot/C 760 | . 180 120 340 120 Destroy 0b10 Robot/NC 30 | . . 15 10 5 Destroy Leader 216 | . 40 30 114 32 Allied During Kill 144 | . . . 128 16 Successful Hack 5 | . . . 5 . Disable Machine 45 | . 15 30 . . Destroy Structure 38 | . . 36 1 1 Lose Combat Pursuer 210 | . 15 15 45 135 Influence Decreases 1377 | . 212 148 671 346 Entered New Map 165 | . . 23 79 63 Time Decay 898 | . 172 85 472 169 Lost Part 130 | . 40 40 10 40 Lost Ally 184 | . . . 110 74 Squads Dispatched 8 | . 1 1 1 5 Investigation 1 | . . . . 1 Extermination . | . . . . . Reinforcement 4 | . 1 1 1 1 Assault . | . . . . . Garrison 3 | . . . . 3 Intercept . | . . . . . Searches Triggered . | . . . . . Construction Impeded . | . . . . . Haulers Reinforced . | . . . . . Active Scanning Responses . | . . . . . Cargo Convoy Interrupts . | . . . . . Stealth | -11 -10 -9 -9 -8 --------- Run | Yrd Mat Mat Sto Mat Distress Signals 7 | . 1 . 3 3 Communications Jammed . | . . . . . Distress Signals . | . . . . . Times Spotted 76 | . 12 10 24 30 Peak Tracking Total 13 | . 5 5 3 13 Tactical Retreats 7 | . 1 1 2 3 Traps | -11 -10 -9 -9 -8 ------- Run | Yrd Mat Mat Sto Mat Traps Triggered 5 | . 3 . 1 1 Indirectly . | . . . . . Trap Hack Attempts . | . . . . . Triggered . | . . . . . Disarmed . | . . . . . Reprogrammed . | . . . . . Reused . | . . . . . Traps Extracted . | . . . . . Installed . | . . . . . Triggered . | . . . . . Machines | -11 -10 -9 -9 -8 ---------- Run | Yrd Mat Mat Sto Mat Machines Disabled 3 | . 1 2 . . Max in Single Turn 1 | . 1 1 . . Machines Repaired . | . . . . . Machines Dismantled . | . . . . . Machines Sabotaged . | . . . . . Overloaded Fab Kills . | . . . . . Hacking | -11 -10 -9 -9 -8 --------- Run | Yrd Mat Mat Sto Mat Machines Accessed 4 | . 1 . 3 . Terminals 2 | . . . 2 . Fabricators . | . . . . . Repair Stations . | . . . . . Recycling Units 1 | . 1 . . . Scanalyzers . | . . . . . Garrison Access 1 | . . . 1 . Total Hacks 8 | . 5 . 3 . Successful 6 | . 4 . 2 . Failed 2 | . 1 . 1 . Catastrophic . | . . . . . Database Lockouts . | . . . . . Manual . | . . . . . Terminals 2 | . . . 2 . Fabricators . | . . . . . Repair Stations . | . . . . . Recycling Units 5 | . 5 . . . Scanalyzers . | . . . . . Garrison Access 1 | . . . 1 . Terminal Hacks 2 | . . . 2 . Open Door 1 | . . . 1 . Zone Layout 1 | . . . 1 . Fabricator Hacks . | . . . . . Repair Station Hacks . | . . . . . Recycling Unit Hacks 4 | . 4 . . . Process 2 | . 2 . . . Report Inventory 1 | . 1 . . . Retrieve Matter 1 | . 1 . . . Scanalyzer . | . . . . . Garrison Access Hacks . | . . . . . Unauthorized Hacks . | . . . . . Terminals . | . . . . . Fabricators . | . . . . . Repair Stations . | . . . . . Recycling Units . | . . . . . Scanalyzers . | . . . . . Garrison Access . | . . . . . Data Cores Recovered . | . . . . . Used . | . . . . . Hacking Detections 1 | . . . 1 . Full Trace Events . | . . . . . Feedback Events . | . . . . . Feedback Blocked . | . . . . . Robot Schematics Acquired . | . . . . . Robots Built . | . . . . . Authchips . | . . . . . Time . | . . . . . Total Robot Build Rating . | . . . . . Part Schematics Acquired . | . . . . . Parts Built . | . . . . . Authchips . | . . . . . Time . | . . . . . Total Part Build Rating . | . . . . . Part Studies Acquired . | . . . . . Parts Repaired . | . . . . . Time . | . . . . . Parts Recycled . | . . . . . Recycled Matter 257 | . 257 . . . Retrieved Matter 257 | . 257 . . . Retrieved Components . | . . . . . Parts Scanalyzed . | . . . . . Part Schematics Acquired . | . . . . . Parts Damaged . | . . . . . Bothacking | -11 -10 -9 -9 -8 ------------ Run | Yrd Mat Mat Sto Mat Used RIF Installer . | . . . . . Robots Hacked . | . . . . . Non-combat . | . . . . . Combat . | . . . . . Robot Hacks Applied . | . . . . . Relay Couplers Released . | . . . . . Fabnet Peak Effective % . | . . . . . Robots Rewired . | . . . . . Allies Hacked . | . . . . . Hacks Repelled . | . . . . . Allies | -11 -10 -9 -9 -8 -------- Run | Yrd Mat Mat Sto Mat Total Allies 10 | . . . 10 . Largest Group 10 | . . . 10 4 Highest-Rated Group 88 | . . . 88 39 Highest-Rated Ally 16 | . . . 16 16 Total Orders . | . . . . . Ally Attacks 130 | . . . 83 47 Total Damage 1105 | . . . 702 403 Kills 17 | . . . 13 4 Allies Corrupted . | . . . . . Allies Melted 1 | . . . . 1 Intel | -11 -10 -9 -9 -8 ------- Run | Yrd Mat Mat Sto Mat Active Infowar (turns) . | . . . . . Robot Analysis Total . | . . . . . Derelict Logs Recovered . | . . . . . Drone Launches 20 | . . . 11 9 Drone Recoveries 16 | . . . 8 8 Exploration | -11 -10 -9 -9 -8 ------------- Run | Yrd Mat Mat Sto Mat Turns Passed 2959 | 97 571 210 1633 448 Spaces Moved 1582 | 76 334 101 836 235 Core 134 | 13 . 16 46 59 Treads . | . . . . . Legs 1448 | 63 334 85 790 176 Wheels . | . . . . . Hover . | . . . . . Flight . | . . . . . Fastest Speed 50 | 50 120 50 50 50 Average Speed 155 | 108 121 124 176 157 Slowest Speed 250 | 120 190 190 250 190 Overloaded Moves . | . . . . . Propulsion Burnouts . | . . . . . Robots Hopped . | . . . . . Potential Cave-ins . | . . . . . Cave-ins Triggered . | . . . . . Exploration Rate (%) 36 | 4 46 12 92 30 Regions Visited 4 Branch Regions 1 Pre-discovered Areas . | . . . . . Known Exits Taken . | . . . . . Unknown Exits Taken 4 | 1 1 1 1 . Scrap Searched . | . . . . . Spaces Dug . | . . . . . Terrain Destroyed 41 | . . 41 . . Melee . | . . . . . Projectile . | . . . . . AOE 41 | . . 41 . . Terrain Rammed . | . . . . . Walls Destroyed . | . . . . . Machines Disabled . | . . . . . Actions | -11 -10 -9 -9 -8 --------- Run | Yrd Mat Mat Sto Mat Total 1913 | 88 444 146 953 282 Wait 132 | . 53 15 49 15 Move 1578 | 75 333 100 835 235 Hop . | . . . . . Pick Up 36 | 7 9 4 14 2 Fast Attach 16 | 5 4 . 7 . Attach 22 | 1 8 2 5 6 Detach 1 | . 1 . . . Swap 6 | . 1 . 3 2 Drop 16 | . 5 . 9 2 Fire 95 | . 30 25 24 16 Melee . | . . . . . Ram 1 | . . . . 1 Kick 9 | . . . 6 3 Crush . | . . . . . Escape Stasis . | . . . . . Rewire 1 | . . . 1 . Trap . | . . . . . Miscellaneous . | . . . . . Route ------- -11/Scrapyard -10/Materials -9/Materials -9/Storage -8/Materials History --------- Turn | Location | Event 9 | -11/Scrapyard | Discovered new exit (range 14) 98 | -11/Scrapyard | Entered Materials 307 | -10/Materials | Build established: Mutant 587 | -10/Materials | Lost 4 parts (1p1n2w) 648 | -10/Materials | Discovered new exit (range 7) 669 | -10/Materials | Entered another Materials area 669 | -9/Materials | Evolved 2 slots: Utility x2 816 | -9/Materials | Discovered new exit (range 16) 871 | -9/Materials | Released all parts (5) 879 | -9/Materials | Entered Storage 901 | -9/Storage | Lost 4 parts (1p1n2w) 1031 | -9/Storage | Core integrity fell below 50% 1235 | -9/Storage | Assisted by bots powering up and referring to "LRC-V3" 1549 | -9/Storage | Build established: Commander-Mutant 1598 | -9/Storage | Lost 3 allies 2463 | -9/Storage | Discovered new exit (range 16) 2512 | -9/Storage | Entered Materials 2512 | -8/Materials | Accompanied by 6 allies 2512 | -8/Materials | Evolved 2 slots: Propulsion x1, Utility x1 2736 | -8/Materials | Garrison activated, responded to threat 2824 | -8/Materials | Lost 4 allies 2910 | -8/Materials | Released all parts (10) 2954 | -8/Materials | Core integrity fell below 50% 2960 | -8/Materials | Core integrity fell below 20% 2960 | -8/Materials | Destroyed by G-47 Trooper with Particle Gun Last Messages --------------- 02910_ Released Adv. Beam Cannon. 02910_ Released Imp. Aluminum Leg. 02910_ Released Heat Sink. 02910_ Released Imp. Ion Engine. 02918_ R-06 Scavenger inserts Heat Sink into recycling unit. 02939_ Critical hit (Burn: +37). 02945_ G-50 Soldier IFF system glitched. 02947_ Slammed into G-50 Soldier. 02947_ Destabilizing: System interference. 02947_ Imp. EM Shotgun temporarily disabled. 02948_ W-25 Informer sends out distress signal. 02950_ Imp. EM Shotgun destroyed. 02950_ Critical hit (Burn: +37). 02957_ G-50 Soldier IFF system glitched. 02957_ Y-45 Defender destroyed. 02957_ Imp. Aluminum Leg destroyed. 02957_ Adv. Beam Cannon destroyed. 02958_ Acquired 28 matter. 02959_ M-28 Smith repairs G-47 Trooper. 02959_ Critical hit (Burn: +37). Map ----- +----------------------------------------------------+ | ???????????????????????????????????????? | | ???????????????????????????????????????? | | ???????????????????????????????????????? | | ???????????????????????????????????????? | | ???????????????????????????????????????? | | ???????????????????????????????????????? | | ???????????????????????????????????????? | | ???????????????????????????????????????? | | ???????????????????????????????????????? | | ????????????????##?????????????????????? | | ??????????###### ###???????????????????? | | ??????????# """ #???????????????????? | | ??????????# "Y" #???????????????????? | | ??????????# " " ! #???????????????????? | | ??????????# #???????????????????? | | ??????????# *] #???????????????????? | | ??????????# *[ #???????????????????? | | ??????????# #???????????????????? | | ??????????? #???????????????????? | | ????????????? /?????????????????????? | | ?????????????##+##?????????????????????? | | ?????????????# ##############????????? | | ?????????????# # #????????? | | ?????????????# Y# #????????? | | ?????????????#*==/g #????????? | | ?????????????#g@g# #????????? | | ?????????????#g! # #????????? | | ?????????????#Ygg####################### | | ?????????????# # ==!=%/= | | ?????????????# # !!%=################ | | ?????????????# #[[[![!#??????????????? | | ?????????????+ #[[ !!!#??????????????? | | ?????????????# #[[ *]#??????????????? | | ?????????????# # #?????""???????? | | ?????????????# gg###/#########"T"####### | | ?????????????# m % | | ?????????????# | | ?????????????# | | ?????????????# | | ?????????????# """ """ """ """ """ | | ????????????"" """ """ """ """ """ | | ???????????#"Y """ """ """ """ """ | | ???????????#"" """ """ """ """ """ | | ???????????### | | ?????????????# = | | ?????????????# #############"T"####### | | ?????????????# ??????????????????# | | ?????????????# ???????????????????# *[ | | ?????????????# ????????????????????# | | ?????????????? ????????????????????# | +----------------------------------------------------+ Best States ------------- Heat Dissipation 42 Energy Generation 12 Energy Capacity 265 Matter Stores 300 Matter Capacity 300 Sight Range 16 Terrain Scan Density 10 Utility Shielding 33 Evasion (%) 55 Item Schematics ----------------- None Robot Schematics ------------------ None Fabricated ------------ Nothing Repaired ---------- Nothing Studied --------- None Alien Tech Used ----------------- None Achievements -------------- For Emergencies Only Release The Drones! Challenges ------------ None Game ------ Seed SalvagingAmuletChaingun Manual? 0 Play Time 00:29:22 Cumulative 23.7 hours Start 2026.08.18 @ 18:51:32 End 2026.08.18 @ 19:24:30 Sessions 1 Manual Loads 0 Difficulty Rogue Special Mode None Game No. 48 Rogue 48 Adventurer 0 Explorer 0 Win Type - Total 0 Types 0/0/0/0/0/0/0/0/0/0 Lore% 13 Gallery% 20 Achievement% 14 Wizard Run 0 Options --------- Layout 0 ASCII 0 Keyboard 1 Movement Numpad Keybinds 0 Fullscreen 1 Font 18/SmallcapsGlow Map View 76x50 Zoom Use 0% Tactical HUD 1 Map Filters NONE Filters NONE Steam 1 RUN: fc8e67a3-c113-4182-857f-4800b0333e93